bitfinex-derivatives/quotes_ETHF0:USTF0_20250616
["timestamp","ask_amount","ask_price","bid_price","bid_amount"]
[1750039012611,0.01354753,2554.1,2554.0,3.2078]
[1750039014005,0.01354753,2554.1,2554.0,3.99075]
[1750039014216,0.01354753,2554.1,2553.6,3.2078]
[1750039014412,0.01354753,2554.1,2553.5,0.00588431]
[1750039014413,0.78296,2554.0,2553.7,3.2078]
[1750039014617,0.02709506,2553.9,2553.7,3.2078]
[1750039015118,0.78301,2553.8,2553.7,3.2078]
[1750039015722,0.82359453,2553.8,2553.7,3.2078]
[1750039016116,0.78307,2553.6,2553.5,0.00588431]
[1750039016721,0.04058453,2553.6,2553.5,0.00588431]
[1750039016922,0.82365453,2553.6,2553.5,0.00588431]
[1750039017425,0.04058453,2553.6,2553.5,0.00588431]
[1750039017818,0.82365453,2553.6,2553.5,0.00588431]
[1750039019324,3.2078,2554.8,2553.5,59.17564016]
[1750039019518,3.2078,2555.1,2554.5,3.2078]
[1750039019817,0.78275,2554.7,2554.5,3.21367268]
[1750039020024,0.78277,2554.6,2554.5,0.00587268]
[1750039020221,2.06887,2554.6,2554.5,3.21367268]
[1750039020420,2.06887,2554.6,2554.5,0.00587268]
[1750039020823,7.06887,2554.6,2554.5,2.68e-06]
[1750039022726,14.14287,2554.6,2554.5,2.68e-06]
[1750039023129,0.78316,2553.3,2553.2,3.2078]
[1750039023521,0.78316,2553.3,2552.9,3.2078]
[1750039023522,0.78326,2553.0,2552.9,3.2078]
[1750039023723,10.30929116,2553.0,2551.9,4.2059]
[1750039024035,0.06737406,2552.1,2551.9,4.98947]
[1750039024330,0.06737406,2552.1,2552.0,0.78356]
[1750039024536,0.06737406,2552.1,2551.9,4.2059]
[1750039024537,0.11554152,2552.1,2551.9,4.2059]
[1750039024720,0.89909152,2552.1,2551.9,3.2078]
[1750039024921,0.04816746,2552.1,2551.9,3.2078]
[1750039025321,0.04816746,2552.1,2552.0,0.8619299]
[1750039025727,0.04816746,2552.1,2552.0,2.2417299]
[1750039026118,0.04816746,2552.1,2552.0,1.4581699]
[1750039026326,3.2078,2553.8,2552.3,1.95865]
[1750039026524,2.33457689,2554.1,2553.5,3.2078]
[1750039026525,1.2801,2553.9,2553.5,3.2078]
[1750039026720,3.2078,2554.1,2553.5,3.2078]
[1750039026929,3.99074,2554.1,2553.5,3.99089]
[1750039027225,1.2801,2554.0,2553.6,0.78306]
[1750039028333,1.2801,2554.0,2553.6,0.78307]
[1750039029025,0.78299,2553.9,2553.5,10.28867268]
[1750039029224,2.06306,2554.0,2553.5,11.07175268]
[1750039029425,2.06306,2554.0,2553.6,0.78307]
[1750039029724,7.14237406,2554.6,2553.8,3.2078]
[1750039029725,3.99061,2554.5,2553.8,3.2078]
[1750039029921,0.78283,2554.4,2554.1,3.2078]
[1750039030125,1.3572,2554.4,2554.1,3.2078]
[1750039030634,1.01637406,2554.6,2554.2,0.78287]
[1750039030831,1.01637406,2554.6,2554.1,3.2078]
[1750039031134,0.7828,2554.5,2554.1,3.9907]
[1750039031630,0.78283,2554.4,2554.1,3.2078]
[1750039031829,0.78281,2554.5,2554.1,3.2078]
[1750039032032,0.78281,2554.5,2553.9,7.075]
[1750039032033,1.259,2554.5,2553.9,7.075]
[1750039032532,0.78288,2554.3,2553.9,7.075]
[1750039032730,0.78288,2554.3,2554.1,3.2078]
[1750039032932,0.78289,2554.2,2554.1,3.2078]
[1750039033132,4.06e-06,2554.6,2554.5,0.7828]
[1750039033325,4.06e-06,2554.6,2554.5,70.78435585]
[1750039033522,4.06e-06,2554.6,2554.5,74.17860983]
[1750039033730,4.06e-06,2554.6,2554.5,76.4112]
[1750039035031,3.20780406,2554.6,2554.0,1.14022397]
[1750039035238,3.2078,2554.3,2553.7,10.5768]
[1750039035428,3.2078,2554.3,2553.7,7.369]
[1750039035628,0.78301,2553.8,2553.7,7.369]
[1750039036640,1.2791,2553.9,2553.7,10.5768]
[1750039036641,0.783,2553.9,2553.7,10.5768]
[1750039037033,0.78301,2553.8,2553.7,3.2078]
[1750039037338,0.78301,2553.8,2553.7,10.5748]
[1750039037931,1.3016,2554.4,2553.7,10.5748]
[1750039037932,0.783,2553.9,2553.7,10.5748]
[1750039038242,0.78301,2553.8,2553.7,10.5748]
[1750039038736,0.78307,2553.6,2553.5,0.00587268]
[1750039039035,3.2078,2555.0,2553.5,38.41562853]
[1750039039243,3.2078,2555.0,2554.1,1.14278032]
[1750039039539,3.2078,2554.7,2554.2,7.368]
[1750039039740,1.30380406,2554.6,2554.2,7.368]
[1750039040039,4.06e-06,2554.6,2554.3,10.5758]
[1750039040337,3.2078,2555.4,2554.3,3.2078]
[1750039040537,0.78265,2555.0,2554.4,10.46181]
[1750039040733,3.2078,2555.1,2554.4,10.82178032]
[1750039041035,0.78276,2554.7,2554.4,8.3492]
[1750039041239,3.2078,2554.8,2554.4,8.3492]
[1750039041240,3.99052,2554.8,2554.4,8.3492]
[1750039041427,0.78274,2554.7,2554.4,8.3492]
[1750039041626,0.78278,2554.6,2554.4,8.3492]
[1750039042040,3.2078,2554.8,2554.4,7.368]
[1750039042237,1.3038,2554.7,2554.4,7.368]
[1750039042434,3.06516,2554.7,2554.4,7.368]
[1750039042641,3.06515,2554.7,2554.4,7.368]
[1750039042936,3.06516,2554.7,2554.4,7.368]
[1750039043138,2.2824,2554.7,2554.4,7.368]
[1750039043441,2.2824,2554.7,2554.1,0.9592]
[1750039043442,0.78281,2554.5,2554.1,1.92569032]
[1750039043834,0.78281,2554.5,2554.1,1.14278032]
[1750039044034,0.78281,2554.5,2554.1,1.92570032]
[1750039044234,3.2078,2554.6,2554.1,1.14278032]
[1750039044442,3.2078,2554.6,2553.9,14.37035032]
[1750039044443,1.3549,2554.5,2553.9,14.37035032]
[1750039044736,0.78283,2554.4,2553.9,13.58738032]
[1750039044933,0.78287,2554.3,2553.9,12.4446]
[1750039045128,1.3549,2554.5,2553.9,13.22757]
[1750039045333,0.78289,2554.2,2553.9,12.4446]
[1750039045533,0.78288,2554.3,2553.9,13.22758]
[1750039045734,0.7829,2554.2,2553.9,12.4446]
[1750039045939,0.78293,2554.1,2553.9,11.5093]
[1750039046237,3.2078,2555.4,2553.9,20.54055585]
[1750039046431,3.2078,2555.4,2554.8,3.2078]
[1750039046630,0.78268,2555.0,2554.9,7.775]
[1750039046836,3.2078,2555.5,2554.9,7.775]
[1750039047040,3.2078,2555.5,2555.0,2.2534]
[1750039047238,0.78257,2555.3,2555.0,0.9956]
[1750039047439,0.78259,2555.2,2555.0,0.9956]
[1750039048542,3.2078,2555.5,2555.0,4.2034]
[1750039048743,3.2078,2555.5,2555.1,2.0649]
[1750039048744,3.9903,2555.5,2555.1,2.0649]
[1750039048945,3.2078,2555.5,2555.1,1.2823]
[1750039049133,3.2078,2555.5,2555.1,2.0649]
[1750039049337,3.99031,2555.5,2555.1,1.2823]
[1750039049539,3.99031,2555.5,2555.1,2.0649]
[1750039050443,3.2078,2555.5,2555.1,1.2823]
[1750039050638,3.9903,2555.5,2555.1,2.06489]
[1750039051538,3.9903,2555.5,2555.0,5.1934]
[1750039051539,3.2078,2555.5,2555.0,5.1934]
[1750039051745,4.5363,2555.5,2555.0,4.2034]
[1750039051944,0.9733,2555.4,2555.0,4.2034]
[1750039052147,0.78262,2555.1,2555.0,0.9956]
[1750039052340,0.81380429,2555.1,2554.9,7.775]
[1750039052543,0.03118429,2555.1,2555.0,3.99045]
[1750039052739,0.03118429,2555.1,2555.0,5.23695]
[1750039053643,3.2078,2555.5,2555.0,17.2273]
[1750039053845,3.2078,2555.5,2555.4,0.78252]
[1750039054039,3.2078,2555.5,2555.4,7.773]
[1750039054235,0.15772603,2555.6,2555.4,7.773]
[1750039054236,0.15772603,2555.6,2555.5,0.78249]
[1750039054441,3.2078,2556.4,2555.5,35.1354]
[1750039054748,0.78227,2556.3,2555.8,3.2078]
[1750039054947,0.78227,2556.3,2555.9,8.55535]
[1750039055149,0.00911721,2556.9,2555.9,7.773]
[1750039055445,0.30496118,2559.2,2557.4,1.95474]
[1750039055639,0.07815247,2559.1,2558.0,0.00587268]
[1750039055834,3.51276118,2559.2,2558.3,8.17355585]
[1750039055835,0.28236383,2558.9,2558.3,8.17355585]
[1750039056038,0.28236383,2558.8,2558.3,8.17355585]
[1750039056238,0.28236383,2558.6,2558.4,1.22748484]
[1750039056434,2.32448979,2559.2,2558.3,3.2078]
[1750039056637,2.32448979,2559.2,2559.0,3.2078]
[1750039056838,0.28236383,2559.1,2559.0,3.2078]
[1750039057049,3.2078,2560.4,2559.0,17.50602608]
[1750039057241,3.2078,2560.0,2559.0,11.3168]
[1750039057544,0.28236383,2559.4,2559.2,0.00586086]
[1750039057747,3.2078,2560.0,2559.3,0.53553187]
[1750039058043,3.26088979,2560.1,2559.2,0.00586086]
[1750039058044,0.28236383,2559.3,2559.2,0.00586086]
[1750039058240,3.26088979,2560.1,2559.2,5.52610627]
[1750039058444,2.60685362,2560.1,2559.8,3.2078]
[1750039058750,0.28236383,2559.9,2559.8,3.2078]
[1750039058949,0.28236383,2559.9,2559.3,3.2078]
[1750039059145,0.15772603,2560.3,2559.2,0.00586086]
[1750039059146,0.28236383,2559.4,2559.2,0.00586086]
[1750039059441,1.08512499,2559.3,2559.2,0.00586086]
[1750039059644,3.51159499,2559.3,2558.6,3.2078]
[1750039059835,0.28236383,2558.7,2558.6,3.2078]
[1750039060241,0.32522615,2558.7,2558.6,3.2078]
[1750039060441,0.32522615,2558.7,2558.3,3.2078]
[1750039060642,0.28236383,2558.4,2558.3,3.2078]
[1750039060842,0.28236383,2558.4,2558.2,0.00586086]
[1750039061039,0.28236383,2558.4,2557.6,27.777]
[1750039061040,5.60552383,2558.3,2557.6,3.2078]
[1750039061240,0.28236383,2557.9,2557.5,0.78186]
[1750039061440,0.28236383,2557.9,2557.5,3.2078]
[1750039061641,1.61606383,2557.9,2557.5,11.6428]
[1750039061838,1.3337,2557.9,2557.8,3.2078]
[1750039062042,1.3337,2557.9,2557.6,0.00586086]
[1750039062246,0.83582292,2557.8,2557.6,0.00586086]
[1750039062435,1.61606383,2557.7,2557.6,0.00586086]
[1750039062635,2.39788383,2557.7,2557.6,0.00586086]
[1750039063145,2.39788383,2557.7,2557.2,3.2078]
[1750039063146,7.39788383,2557.7,2557.2,3.2078]
[1750039063335,7.39788383,2557.7,2556.9,8.434]
[1750039063336,1.06432383,2557.3,2556.9,11.6418]
[1750039063541,0.28236383,2557.4,2557.2,3.2078]
[1750039064049,1.06429383,2557.4,2557.2,3.2078]
[1750039064241,1.68557675,2557.3,2557.2,3.2078]
[1750039064437,2.46751675,2557.3,2557.2,3.2078]
[1750039064649,2.46753675,2557.3,2557.0,0.00586086]
[1750039064848,0.28236383,2557.1,2557.0,0.00586086]
[1750039065350,1.11837675,2557.1,2557.0,0.00586086]
[1750039066048,6.11837675,2557.1,2557.0,0.00586086]
[1750039067044,6.14589879,2557.1,2557.0,0.00586086]
[1750039067244,5.36389879,2557.1,2556.5,3.2078]
[1750039067445,0.28236383,2556.6,2556.5,3.2078]
[1750039067646,0.08153496,2557.1,2557.0,0.78203]
[1750039067849,0.36389879,2557.1,2557.0,3.2078]
[1750039068045,0.39038967,2557.1,2556.7,3.2078]
[1750039068244,2.05506,2557.0,2556.7,3.2078]
[1750039068447,0.28236383,2556.8,2556.7,3.2078]
[1750039068652,1.06446383,2556.8,2556.7,3.2078]
[1750039068950,1.55536383,2556.8,2556.7,3.2078]
[1750039069146,2.44548967,2556.8,2556.7,3.2078]
[1750039069347,1.66338967,2556.8,2556.7,3.2078]
[1750039071952,2.44548967,2556.8,2556.7,3.2078]
[1750039072153,7.44548967,2556.8,2556.7,3.2078]
[1750039072754,0.78213,2556.7,2556.6,0.00586086]
[1750039072950,2.40199383,2556.7,2556.6,0.00586086]
[1750039073159,2.51001967,2556.7,2556.6,0.00586086]
[1750039074055,1.72788967,2556.7,2556.6,0.00586086]
[1750039074252,1.61986383,2556.7,2556.6,0.00586086]
[1750039074559,0.40069167,2556.7,2556.6,0.00586086]
[1750039074760,0.9076,2557.2,2556.6,0.00586086]
[1750039074761,0.00586086,2557.6,2556.6,69.09254014]
[1750039074944,1.2946,2558.5,2557.5,10.28320805]
[1750039075148,1.2946,2558.5,2557.9,3.2078]
[1750039075358,0.78163,2558.4,2557.9,3.98955]
[1750039075543,0.78169,2558.2,2558.0,0.53340146]
[1750039075853,0.7817,2558.1,2557.9,3.2078]
[1750039076054,1.2946,2558.3,2558.0,0.53342064]
[1750039076258,1.2584,2558.0,2557.9,3.2078]
[1750039076454,2.04013,2558.0,2557.9,4.26558886]
[1750039076654,2.04013,2558.0,2557.9,3.73226049]
[1750039076956,2.04013,2558.0,2557.9,3.2078]
[1750039078160,0.78176,2557.9,2557.8,0.00586086]
[1750039078359,2.04016,2557.9,2557.8,0.00586086]
[1750039079552,1.2584,2557.9,2557.8,0.00586086]
[1750039079752,2.04016,2557.9,2557.8,0.00586086]
[1750039080159,2.04016,2557.9,2557.8,0.54082598]
[1750039080356,2.04016,2557.9,2557.8,0.00586086]
[1750039080561,2.04016,2557.9,2557.8,0.54071264]
[1750039080761,2.04016,2557.9,2557.8,0.00586086]
[1750039082758,1.2584,2557.9,2557.8,0.00586086]
[1750039082959,0.00586086,2558.4,2557.8,2.75296458]
[1750039083257,0.78173,2558.0,2557.9,1.22242656]
[1750039085164,0.78176,2557.9,2557.8,0.00586086]
[1750039085366,2.14696,2557.9,2557.8,1.22405524]
[1750039085766,2.21433406,2557.9,2557.8,1.22405524]
[1750039086064,2.21433406,2557.9,2557.8,1.2241781]
[1750039086366,2.21433406,2557.9,2557.8,8.6e-07]
[1750039086557,7.21433406,2557.9,2557.8,8.6e-07]
[1750039086751,0.782,2557.1,2557.0,1.13724424]
[1750039086954,0.782,2557.1,2557.0,1.21474187]
[1750039087458,0.78213,2556.7,2556.6,1.13724424]
[1750039087763,0.78213,2556.7,2556.6,1.21165161]
[1750039088563,0.78213,2556.7,2556.6,2.35307128]
[1750039088953,0.00586086,2556.9,2556.7,0.78211]
[1750039089160,0.00586086,2556.9,2556.8,5.56064617]
[1750039089465,0.00586086,2556.9,2556.8,5.94412877]
[1750039089862,0.00586086,2556.9,2556.8,7.28112877]
[1750039090059,0.00586086,2556.9,2556.8,13.82556736]
[1750039090263,0.00586086,2556.9,2556.8,5.75645161]
[1750039090466,0.00586086,2556.9,2556.8,8.04346736]
[1750039090661,0.00586086,2556.9,2556.8,5.75645161]
[1750039091060,0.78792086,2556.9,2556.8,4.41945161]
[1750039091258,0.78792086,2556.9,2556.8,1.21165161]
[1750039091455,0.83248259,2556.9,2556.8,1.21165161]
[1750039092060,2.07528259,2556.9,2556.8,1.21165161]
[1750039092972,7.07528259,2556.9,2556.8,1.21165161]
[1750039093270,0.78216,2556.6,2556.5,3.2078]
[1750039093470,0.05042259,2556.9,2556.5,5.94056169]
[1750039093768,0.05042259,2556.9,2556.7,3.06790066]
[1750039093963,0.05042259,2556.9,2556.8,5.73359697]
[1750039094165,0.05042259,2556.9,2556.8,8.80093776]
[1750039094866,0.05042259,2556.9,2556.8,8.01883776]
[1750039095666,0.83248259,2556.9,2556.8,6.70113776]
[1750039095867,0.83248259,2556.9,2556.8,4.41589697]
[1750039096167,0.83248259,2556.9,2556.8,6.70113776]
[1750039096369,0.83801927,2556.9,2556.8,6.70113776]
[1750039096572,0.05595927,2556.9,2556.8,5.93978064]
[1750039096773,0.83801927,2556.9,2556.8,5.93978064]
[1750039099769,0.05595927,2556.9,2556.8,5.93978064]
[1750039099969,0.05595927,2556.9,2556.8,18.62142818]
[1750039100564,0.05595927,2556.9,2556.8,19.52772818]
[1750039100768,0.83801927,2556.9,2556.8,40.20789697]
[1750039100972,0.90539333,2556.9,2556.8,40.20789697]
[1750039101172,0.12333333,2556.9,2556.8,40.98999697]
[1750039101378,0.12333333,2556.9,2556.8,40.20789697]
[1750039101575,0.90539333,2556.9,2556.8,4.41589697]
[1750039101873,0.90539333,2556.9,2556.8,12.86489697]
[1750039102474,0.94425708,2556.9,2556.8,12.86489697]
[1750039102673,0.94425708,2556.9,2556.8,6.70185561]
[1750039102977,0.94425708,2556.9,2556.8,15.15085561]
[1750039103370,0.94425708,2556.9,2556.8,5.94022172]
[1750039103575,0.94425708,2556.9,2556.8,4.41589697]
[1750039103777,0.94425708,2556.9,2556.8,5.94022172]
[1750039104976,0.94425708,2556.9,2556.8,4.41589697]
[1750039105367,0.16219708,2556.9,2556.8,4.41589697]
[1750039105566,0.16219708,2556.9,2556.8,10.19799697]
[1750039105770,0.16219708,2556.9,2556.8,40.5349654]
[1750039106366,0.16219708,2556.9,2556.8,81.3349654]
[1750039106569,0.16219708,2556.9,2556.8,76.3349654]
[1750039107184,0.16219708,2556.9,2556.8,81.3349654]
[1750039108677,0.16219708,2556.9,2556.8,54.1229654]
[1750039108878,0.94425708,2556.9,2556.8,12.56589697]
[1750039109271,0.94425708,2556.9,2556.8,14.85487257]
[1750039109674,0.94425708,2556.9,2556.8,6.70487257]
[1750039109875,0.94425708,2556.9,2556.8,5.94234393]
[1750039111481,0.94425708,2556.9,2556.8,6.70487257]
[1750039112177,0.16219708,2556.9,2556.8,7.48697257]
[1750039112374,0.94426708,2556.9,2556.8,6.70487257]
[1750039112777,0.16219708,2556.9,2556.8,11.65897796]
[1750039112977,0.94426708,2556.9,2556.8,11.65897796]
[1750039113182,0.95481899,2556.9,2556.8,11.65897796]
[1750039113685,0.9653709,2556.9,2556.8,11.65897796]
[1750039113983,0.9653709,2556.9,2556.8,6.70487257]
[1750039114280,0.9653709,2556.9,2556.8,5.94337674]
[1750039114488,0.9653709,2556.9,2556.8,4.41589697]
[1750039114878,0.9653709,2556.9,2556.8,5.94337674]
[1750039115081,0.1833009,2556.9,2556.8,10.15210236]
[1750039115278,0.1833009,2556.9,2556.8,36.37800236]
[1750039115478,0.1833009,2556.9,2556.8,37.16010236]
[1750039116382,0.19385281,2556.9,2556.8,37.16010236]
[1750039117081,0.78196,2557.3,2557.1,0.782]
[1750039117284,0.78194,2557.3,2557.2,9.35945045]
[1750039118387,0.79249191,2557.3,2557.2,11.65098072]
[1750039120485,0.79249191,2557.3,2557.2,6.69687533]
[1750039120687,0.79249191,2557.3,2557.2,2.73464528]
[1750039120891,0.79249191,2557.3,2557.2,1.20809697]
[1750039121192,0.79249191,2557.3,2557.2,2.35308595]
[1750039121492,0.79249191,2557.3,2557.2,1.20809697]
[1750039121685,0.79249191,2557.3,2557.2,5.94244528]
[1750039123493,0.79249191,2557.3,2557.2,4.41589697]
[1750039123694,0.79249191,2557.3,2557.2,5.94275299]
[1750039123892,0.79249191,2557.3,2557.2,4.41589697]
[1750039124091,0.79249191,2557.3,2557.2,2.3502893]
[1750039124390,0.79249191,2557.3,2557.2,5.94275299]
[1750039124598,0.82798014,2557.3,2557.2,5.94275299]
[1750039124894,0.82798014,2557.3,2557.0,2.29153027]
[1750039125086,3.2078,2557.1,2556.8,1.14333251]
[1750039125392,0.7821,2556.8,2556.7,1.14359166]
[1750039125591,0.82814014,2556.8,2556.7,1.14359166]
[1750039126096,0.82814014,2556.8,2556.6,4.95410539]
[1750039126097,0.82815014,2556.8,2556.6,4.95410539]
[1750039126499,0.04604014,2556.7,2556.6,4.95410539]
[1750039126701,0.82817014,2556.7,2556.6,4.95410539]
[1750039126889,0.78216,2556.6,2556.5,3.2078]
[1750039127599,0.82820014,2556.6,2556.5,3.2078]
[1750039129095,0.04604014,2556.6,2556.5,3.2078]
[1750039129597,0.82820014,2556.6,2556.5,3.2078]
[1750039131090,0.78219,2556.5,2556.4,0.00586086]
[1750039131691,0.82823014,2556.5,2556.4,0.00586086]
[1750039132198,0.82823014,2556.5,2556.4,4.95996625]
[1750039133798,0.82823014,2556.5,2556.4,0.00586086]
[1750039134584,0.82823014,2556.5,2556.4,1.14733364]
[1750039134799,0.82823014,2556.5,2556.4,0.00586086]
[1750039135092,5.82823014,2556.5,2556.4,8.6e-07]
[1750039135990,7.19883014,2556.5,2556.4,8.6e-07]
[1750039137206,10.40663014,2556.5,2556.4,8.6e-07]
[1750039137388,7.19883014,2556.5,2556.4,8.6e-07]
[1750039137796,15.04383014,2556.5,2556.4,8.6e-07]
[1750039137995,18.25163014,2556.5,2556.4,8.6e-07]
[1750039138199,15.04383014,2556.5,2556.4,8.6e-07]
[1750039138393,18.25163014,2556.5,2556.4,8.6e-07]
[1750039140001,18.25263014,2556.5,2556.4,8.6e-07]
[1750039141095,22.10963014,2556.5,2556.4,8.6e-07]
[1750039141303,18.90183014,2556.5,2556.4,8.6e-07]
[1750039141498,40.40583014,2556.5,2556.4,8.6e-07]
[1750039141795,6.05583014,2556.5,2556.4,8.6e-07]
[1750039142301,9.26363014,2556.5,2556.4,8.6e-07]
[1750039143494,6.05583014,2556.5,2556.4,8.6e-07]
[1750039144799,6.06932262,2556.5,2556.4,8.6e-07]
[1750039145001,9.27712262,2556.5,2556.4,8.6e-07]
[1750039145605,5.48749668,2556.5,2556.4,8.6e-07]
[1750039147309,2.27969668,2556.5,2556.4,8.6e-07]
[1750039147812,2.29318977,2556.5,2556.4,8.6e-07]
[1750039149508,7.30668225,2556.5,2556.4,8.6e-07]
[1750039149715,0.7824,2555.8,2555.6,1.13951575]
[1750039150008,0.78249,2555.5,2555.4,4.34731575]
[1750039150209,0.78249,2555.5,2555.4,4.39235463]
[1750039150416,0.88254306,2555.5,2555.4,4.39235463]
[1750039150909,0.88254306,2555.5,2555.4,1.18455463]
[1750039151208,0.78274,2554.7,2554.6,3.2078]
[1750039151410,1.2592,2555.4,2554.6,11.37194067]
[1750039151608,0.97626086,2555.7,2555.3,4.40794207]
[1750039151814,0.78252,2555.4,2555.3,4.40794207]
[1750039152014,0.78268,2554.9,2554.8,4.40794207]
[1750039153422,3.2078,2555.5,2554.8,4.40794207]
[1750039153613,27.27926086,2555.7,2555.3,4.40794207]
[1750039154013,0.78254,2555.4,2555.3,4.40794207]
[1750039154924,1.3386,2555.6,2555.3,4.40794207]
[1750039155220,0.78252,2555.5,2555.3,4.40794207]
[1750039155415,0.78253,2555.4,2555.3,4.40794207]
[1750039155617,0.78251,2555.5,2555.3,4.40794207]
[1750039155924,0.78253,2555.4,2555.3,4.40794207]
[1750039156530,0.78252,2555.5,2555.3,4.40794207]
[1750039156820,0.78261,2555.2,2555.0,5.39004207]
[1750039157022,0.78258,2555.3,2555.0,5.39004207]
[1750039158025,0.78258,2555.3,2555.0,6.70764207]
[1750039158420,0.78258,2555.3,2555.0,7.49029207]
[1750039158621,0.78262,2555.1,2555.0,5.39004207]
[1750039159020,3.2078,2555.2,2554.7,13.48219593]
[1750039159220,3.2078,2555.2,2554.6,6.96721472]
[1750039159521,0.78275,2554.7,2554.6,3.21366086]
[1750039159923,0.78275,2554.7,2554.6,0.00586086]
[1750039163021,0.78274,2554.8,2554.6,0.00586086]
[1750039163223,33.2088,2555.6,2554.7,1.16417487]
[1750039163424,1.95633,2555.5,2554.8,7.91371694]
[1750039163727,0.78267,2555.0,2554.9,1.16417487]
[1750039164230,34.5357,2555.6,2554.9,2.52757487]
[1750039164528,0.78268,2554.9,2554.8,0.9782]
[1750039164724,0.78268,2554.9,2554.8,2.14255129]
[1750039165224,0.78275,2554.7,2554.6,0.00586086]
[1750039165729,3.99055,2554.7,2554.6,0.00586086]
[1750039165923,0.78284,2554.4,2554.3,3.2078]
[1750039166326,1.3195,2554.6,2554.1,0.9782]
[1750039166327,0.7829,2554.2,2554.1,0.9782]
[1750039168229,0.00587257,2554.4,2554.1,0.9782]
[1750039168433,0.78872257,2554.4,2554.2,3.2078]
[1750039169629,0.78287,2554.3,2554.2,3.2078]
[1750039169935,0.00587257,2554.4,2554.3,0.78287]
[1750039170234,0.00587257,2554.4,2554.2,5.33888]
[1750039170532,0.78873257,2554.4,2554.2,4.556]
[1750039170833,0.78287,2554.3,2554.2,4.556]
[1750039171033,0.7829,2554.2,2554.1,0.9782]
[1750039171430,0.78288,2554.3,2554.1,0.9782]
[1750039171630,0.00587257,2554.4,2554.2,3.2078]
[1750039171938,0.78873257,2554.4,2554.2,5.28419]
[1750039172233,0.78287,2554.3,2554.2,4.5013]
[1750039172427,0.78287,2554.3,2554.2,3.2078]
[1750039172625,0.7829,2554.2,2554.1,0.9782]
[1750039175523,0.00587257,2554.4,2553.9,3.21178566]
[1750039175524,3.21367257,2554.4,2553.9,3.21178566]
[1750039175723,0.78296,2554.0,2553.9,3.21178566]
[1750039177233,0.78296,2554.0,2553.9,4.36973695]
[1750039177730,1.76426,2554.0,2553.9,4.36973695]
[1750039177940,1.76426,2554.0,2553.9,3.21178566]
[1750039178130,0.78311,2553.5,2553.4,1.52067087]
[1750039178335,0.78311,2553.5,2553.4,5.88698473]
[1750039179126,0.78311,2553.5,2553.4,1.15851386]
[1750039179529,2.02871,2553.5,2553.4,1.15851386]
[1750039180334,0.78311,2553.5,2553.4,1.15851386]
[1750039188154,0.78311,2553.6,2553.4,1.94164386]
[1750039188451,0.78308,2553.6,2553.5,7.09541567]
[1750039188645,0.06737406,2554.2,2554.1,0.78293]
[1750039188950,0.00587257,2554.4,2554.1,13.1337448]
[1750039189252,0.00587257,2554.4,2554.3,2.28381958]
[1750039189551,0.00587257,2554.4,2554.3,9.22520344]
[1750039189747,0.78871257,2554.4,2554.3,1.15851386]
[1750039190537,0.82154042,2554.4,2554.3,1.15851386]
[1750039191551,0.83454756,2554.4,2554.3,1.15851386]
[1750039192553,0.78258,2555.3,2554.3,6.15851386]
[1750039192849,0.78256,2555.3,2555.2,4.41623094]
[1750039193044,0.78256,2555.3,2555.2,1.15851386]
[1750039193649,1.3446,2555.4,2555.0,0.00587257]
[1750039193850,3.21367257,2555.5,2555.0,0.00587257]
[1750039193851,3.2078,2555.1,2555.0,0.00587257]
[1750039194044,3.2078,2555.1,2555.0,1.16225418]
[1750039195145,0.78257,2555.3,2555.0,1.16225418]
[1750039195346,0.78257,2555.3,2555.1,1.15638161]
[1750039195549,3.2078,2555.3,2555.2,1.15587517]
[1750039195847,0.78261,2555.2,2555.0,0.00587257]
[1750039196051,0.78261,2555.2,2555.1,1.15580217]
[1750039196351,0.78258,2555.3,2555.1,1.15580217]
[1750039196555,0.78258,2555.3,2555.0,0.00587257]
[1750039196851,0.78258,2555.3,2555.1,1.15540756]
[1750039197056,0.00587257,2555.5,2555.2,8.45434723]
[1750039197246,0.00587257,2555.5,2555.3,1.15534723]
[1750039197451,0.78837257,2555.5,2555.4,1.15534723]
[1750039197651,0.78839257,2555.5,2555.2,8.08159]
[1750039197855,0.00587257,2555.5,2555.3,1.93688765]
[1750039198155,0.00587257,2555.5,2555.3,0.78255]
[1750039198657,0.00587257,2555.5,2555.2,7.299]
[1750039198952,0.00587257,2555.5,2555.0,4.21447257]
[1750039199155,0.78262,2555.2,2555.1,1.15305451]
[1750039199457,0.78262,2555.1,2555.0,0.00587257]
[1750039200756,1.00847257,2555.5,2555.0,0.00587257]
[1750039200965,1.00847257,2555.5,2555.1,1.15367731]
[1750039201255,3.2078,2556.0,2555.4,3.2078]
[1750039201445,3.99004,2556.4,2555.9,4.96219801]
[1750039201647,2.77961,2556.5,2556.2,0.78227]
[1750039201846,3.2078,2556.7,2556.0,10.5058]
[1750039202053,3.2078,2556.7,2556.1,2.42121436]
[1750039202245,3.2078,2556.7,2556.3,4.96219801]
[1750039202246,0.00587257,2556.7,2556.3,4.96219801]
[1750039202449,3.2078,2557.1,2556.8,0.78209]
[1750039202653,3.2078,2557.1,2556.9,7.298]
[1750039202846,2.0175,2557.7,2556.9,10.5058]
[1750039202847,3.2078,2557.5,2556.9,10.5058]
[1750039203253,3.2078,2557.5,2557.1,4.96219801]
[1750039203456,3.2078,2557.5,2557.2,0.78197]
[1750039203857,0.00587257,2557.6,2557.3,7.295]
[1750039204056,0.00587257,2557.6,2557.4,0.78189]
[1750039204264,0.00587257,2557.6,2557.5,4.96219801]
[1750039204665,9.24899,2558.5,2557.5,4.96219801]
[1750039204666,0.39940671,2559.6,2557.6,3.916]
[1750039204853,3.2078,2559.4,2558.7,4.96219801]
[1750039205061,0.07814636,2559.3,2558.8,7.295]
[1750039205262,0.07814636,2559.3,2559.1,3.2078]
[1750039205560,0.07814636,2559.3,2559.2,7.295]
[1750039205969,0.07814636,2559.3,2558.9,0.00587257]
[1750039206154,0.07814636,2559.3,2558.9,5.00587257]
[1750039206355,0.00587257,2559.5,2559.2,8.16999801]
[1750039206561,0.78134,2559.3,2558.9,9.47837058]
[1750039206758,0.78143,2559.0,2558.9,2.57e-06]
[1750039207260,7.12983,2559.0,2558.9,2.57e-06]
[1750039207965,7.12983,2559.0,2557.6,3.2078]
[1750039207966,0.78183,2557.7,2557.6,3.2078]
[1750039208365,0.7819,2557.5,2557.2,10.4998]
[1750039208558,1.3484,2557.9,2557.2,10.4998]
[1750039208760,1.3484,2557.4,2557.2,10.4998]
[1750039208961,0.87912974,2557.4,2557.2,10.4998]